fUST/lending_fUST_20241217
["ID","MTS","AMOUNT","RATE_DAILY","PERIOD"]
[345694607,1734425474901,-500.0,0.00026301,6]
[345694608,1734425474912,-1005.81,0.00026301,6]
[345694609,1734425474925,-2524.67,0.00026301,6]
[345694610,1734425474935,-11798.48,0.00026301,6]
[345694611,1734425474944,-500.0,0.00026301,6]
[345694612,1734425474954,-13005.34,0.00026301,6]
[345694613,1734425474963,-500.0,0.00026301,6]
[345694614,1734425474972,-500.0,0.00026301,6]
[345694615,1734425474982,-1161.3,0.00026301,6]
[345694616,1734425474991,-1000.0,0.00026301,6]
[345694617,1734425475000,-898.82,0.00026301,6]
[345694618,1734425475009,-2222.06,0.00026301,6]
[345694619,1734425475019,-500.0,0.00026301,6]
[345694620,1734425475028,-500.0,0.00026301,6]
[345694621,1734425475037,-587.54,0.00026301,6]
[345694622,1734425475046,-766.57,0.00026301,6]
[345694623,1734425475055,-1986.82,0.00026301,6]
[345694624,1734425475181,-500.0,0.00026301,6]
[345694625,1734425475192,-500.0,0.00026301,6]
[345694626,1734425475201,-2908.71,0.00026301,6]
[345694627,1734425475211,-1835.4,0.00026301,6]
[345694628,1734425475221,-393.2309031,0.00026301,6]
[345694629,1734425475230,-500.0,0.00026301,6]
[345694630,1734425475240,-500.0,0.00026301,6]
[345694631,1734425475249,-500.0,0.00026301,6]
[345694632,1734425475258,-1590.67,0.00026301,6]
[345694633,1734425475268,-1447.05,0.00026301,6]
[345694634,1734425475278,-19653.15,0.00026301,6]
[345694635,1734425475287,-500.0,0.00026301,6]
[345694636,1734425475297,-500.0,0.00026301,6]
[345694637,1734425475307,-2231.36,0.00026301,6]
[345694638,1734425475318,-500.0,0.00026301,6]
[345694639,1734425475328,-617.27570442,0.00026301,6]
[345694640,1734425475338,-511.08,0.00026301,6]
[345694641,1734425475348,-674.27,0.00026301,6]
[345694642,1734425475357,-519.94,0.00026301,6]
[345694643,1734425475367,-786.6,0.00026301,6]
[345694644,1734425475377,-1619.42,0.00026301,6]
[345694645,1734425475386,-1741.45,0.00026301,6]
[345694646,1734425475396,-640.57,0.00026301,6]
[345694647,1734425475405,-3147.67,0.00026301,6]
[345694648,1734425475417,-500.0,0.00026301,6]
[345694649,1734425475427,-500.0,0.00026301,6]
[345694650,1734425475436,-2994.03,0.00026301,6]
[345694651,1734425475446,-520.92,0.00026301,6]
[345694652,1734425475456,-993.66,0.00026301,6]
[345694653,1734425475467,-785.03,0.00026301,6]
[345694654,1734425475477,-6877.67,0.00026301,6]
[345694655,1734425475487,-500.0,0.00026301,6]
[345694656,1734425475498,-1814.14,0.00026301,6]
[345694657,1734425475507,-1200.6,0.00026301,6]
[345694658,1734425475517,-500.0,0.00026301,6]
[345694659,1734425475527,-500.0,0.00026301,6]
[345694660,1734425475537,-16840.02,0.00026301,5]
[345694661,1734425475550,-500.0,0.00026301,6]
[345694662,1734425475560,-500.0,0.00026301,6]
[345694663,1734425475570,-1033.64,0.00026301,6]
[345694664,1734425475581,-860.74,0.00026301,6]
[345694665,1734425475591,-2022.44,0.00026301,6]
[345694666,1734425475601,-49051.97,0.00026301,6]
[345694667,1734425475613,-500.0,0.00026301,6]
[345694668,1734425475625,-500.0,0.00026301,6]
[345694669,1734425475642,-1256.94,0.00026301,6]
[345694670,1734425475659,-3068.04,0.00026301,6]
[345694671,1734425475673,-451.56164917,0.00026301,6]
[345694672,1734425475683,-500.0,0.00026301,6]
[345694673,1734425475693,-3944.32,0.00026301,6]
[345694674,1734425475704,-1160.07,0.00026301,6]
[345694675,1734425475714,-500.0,0.00026301,6]
[345694676,1734425475725,-867.7,0.00026301,6]
[345694677,1734425475735,-222.0,0.00026328,6]
[345694678,1734425475746,-500.0,0.00026375,3]
[345694679,1734425475756,-500.0,0.00026375,3]
[345694680,1734425475766,-500.0,0.00026375,2]
[345694681,1734425475776,-165.3749795,0.00026375,3]
[345694682,1734425475786,-151.93597127,0.00026375,3]
[345694683,1734425475797,-152.50519055,0.00026375,3]
[345694684,1734425475807,-500.0,0.00026375,3]
[345694685,1734425475818,-500.0,0.00026375,3]
[345694686,1734425475828,-500.0,0.00026375,3]
[345694687,1734425475838,-660.0,0.00026384,2]
[345694688,1734425475848,-1701.35996288,0.000264,3]
[345694689,1734425475857,-574.2,0.000264,2]
[345694690,1734425475867,-2000.0,0.000264,2]
[345694691,1734425475877,-654.80350089,0.000264,2]
[345694692,1734425475888,-166.0,0.00026458,3]
[345694693,1734425475898,-1012.92747978,0.00026478,2]
[345694694,1734425475908,-351.798756,0.00026493,2]
[345694695,1734425475921,-351.798756,0.00026493,2]
[345694696,1734425475931,-351.798756,0.00026493,2]
[345694697,1734425475941,-351.798756,0.00026493,2]
[345694698,1734425475950,-351.798756,0.00026493,2]
[345694699,1734425475960,-351.798756,0.00026493,2]
[345694700,1734425475970,-351.798756,0.00026493,2]
[345694701,1734425475981,-351.798756,0.00026493,2]
[345694702,1734425475991,-351.798756,0.00026493,2]
[345694703,1734425476001,-351.798756,0.00026493,2]
[345694704,1734425476011,-351.798756,0.00026493,2]
[345694705,1734425476020,-351.798756,0.00026493,2]
[345694706,1734425476030,-213.8615731,0.00026493,2]
[345694707,1734425476040,-351.798756,0.00026493,2]
[345694708,1734425476050,-351.798756,0.00026493,2]
[345694709,1734425476059,-213.8615731,0.00026493,2]
[345694710,1734425476070,-351.798756,0.00026493,2]
[345694711,1734425476080,-351.798756,0.00026493,2]
[345694712,1734425476090,-213.8615731,0.00026493,2]
[345694713,1734425476099,-351.798756,0.00026493,2]
[345694714,1734425476109,-351.798756,0.00026493,2]
[345694715,1734425476118,-213.8615731,0.00026493,2]
[345694716,1734425476128,-351.798756,0.00026493,2]
[345694717,1734425476137,-351.798756,0.00026493,2]
[345694718,1734425476147,-351.798756,0.00026493,2]
[345694719,1734425476156,-213.8615731,0.00026493,2]
[345694720,1734425476167,-351.798756,0.00026493,2]
[345694721,1734425476176,-351.798756,0.00026493,2]
[345694722,1734425476186,-213.8615731,0.00026493,2]
[345694723,1734425476195,-351.798756,0.00026493,2]
[345694724,1734425476204,-351.798756,0.00026493,2]
[345694725,1734425476214,-207.5816505,0.00026493,2]
[345694726,1734425476224,-351.798756,0.00026493,2]
[345694727,1734425476233,-300.2,0.00026496,2]
[345694728,1734425476242,-1437155.71274992,0.00026499,7]
[345694729,1734425476250,-151.0,0.00026499,7]
[345694730,1734425476259,-151.0,0.00026499,7]
[345694731,1734425476267,-151.0,0.00026499,7]
[345694732,1734425476276,-151.0,0.00026499,7]
[345694733,1734425476285,-151.0,0.00026499,7]
[345694734,1734425476295,-151.0,0.00026499,7]
[345694735,1734425476305,-1789705.64797206,0.000265,5]
[345694736,1734425476612,-2786.42283609,0.000265,5]
[345694737,1734425476625,-1833.57164775,0.000265,5]
[345694738,1734425476841,-500.0,0.00025479,6]
[345694739,1734425476851,-8924.19052654,0.000265,5]
[345694742,1734425551518,285.0,0.0002,2]
[345694743,1734425711913,3005.352278,0.00025569,120]
[345694747,1734426072140,216.62744196,0.0002557,120]
[345694783,1734426632762,-300.0,0.00022999,2]
[345694784,1734426632772,-300.0,0.00022999,2]
[345694785,1734426632783,-99152.0,0.00023,3]
[345694786,1734426632793,-22080.1746101,0.00023252,2]
[345694787,1734426632804,-174.85,0.00023499,4]
[345694788,1734426632814,-270.5774849,0.00023619,2]
[345694789,1734426632825,-199.12036975,0.00024364,2]
[345694791,1734426633157,-666.0,0.00024557,2]
[345694792,1734426633170,-3043.86916887,0.00024557,7]
[345694793,1734426633180,-461.53854765,0.00024557,2]
[345694794,1734426633189,-533.0,0.00024563,2]
[345694795,1734426633199,-2154.0,0.00024563,2]
[345694796,1734426633208,-2368.0,0.00024563,2]
[345694797,1734426633217,-500.0,0.00024656,2]
[345694798,1734426633230,-500.0,0.00024656,2]
[345694799,1734426633240,-500.0,0.00024656,2]
[345694800,1734426633252,-164.77213083,0.00024656,2]
[345694801,1734426633262,-500.0,0.00024656,2]
[345694802,1734426633272,-500.0,0.00024656,2]
[345694803,1734426633282,-500.0,0.00024656,2]
[345694804,1734426633292,-500.0,0.00024656,2]
[345694805,1734426633305,-500.0,0.00024656,2]
[345694806,1734426633315,-500.0,0.00024656,2]
[345694807,1734426633324,-500.0,0.00024656,2]
[345694808,1734426633333,-500.0,0.00024656,2]
[345694809,1734426633344,-500.0,0.00024656,2]
[345694810,1734426633353,-500.0,0.00024656,2]
[345694811,1734426633363,-500.0,0.00024656,2]
[345694812,1734426633373,-266.45327905,0.00024656,2]
[345694813,1734426633382,-500.0,0.00024656,2]
[345694814,1734426633392,-500.0,0.00024656,2]
[345694815,1734426633401,-275.315,0.00024657,6]
[345694816,1734426633411,-500.0,0.00024657,6]
[345694817,1734426633421,-500.0,0.00024657,6]
[345694818,1734426633431,-500.0,0.00024657,6]
[345694819,1734426633440,-500.0,0.00024657,6]
[345694820,1734426633450,-581.91,0.00024657,6]
[345694821,1734426633460,-3000.0,0.00024657,30]
[345694822,1734426633469,-500.0,0.00024657,6]
[345694823,1734426633479,-500.0,0.00024657,6]
[345694824,1734426633489,-500.0,0.00024657,6]
[345694825,1734426633502,-500.0,0.00024657,6]
[345694826,1734426633512,-500.0,0.00024657,6]
[345694827,1734426633522,-500.0,0.00024657,6]
[345694828,1734426633531,-500.0,0.00024657,6]
[345694829,1734426633541,-500.0,0.00024657,6]
[345694830,1734426633551,-500.0,0.00024657,6]
[345694831,1734426633561,-500.0,0.00024657,6]
[345694832,1734426633571,-449.32669233,0.00024657,6]
[345694833,1734426633581,-500.0,0.00024657,6]
[345694834,1734426633591,-500.0,0.00024657,6]
[345694835,1734426633600,-955.71,0.00024657,6]
[345694836,1734426633610,-736.04,0.00024657,6]
[345694837,1734426633620,-500.0,0.00024657,6]
[345694838,1734426633629,-500.0,0.00024657,6]
[345694839,1734426633638,-1902.19,0.00024657,6]
[345694840,1734426633648,-913.53,0.00024657,6]
[345694841,1734426633657,-500.0,0.00024657,6]
[345694842,1734426633667,-500.0,0.00024657,6]
[345694843,1734426633677,-500.0,0.00024657,2]
[345694844,1734426633687,-500.0,0.00024657,6]
[345694845,1734426633696,-500.0,0.00024657,6]
[345694846,1734426633706,-500.0,0.00024657,6]
[345694847,1734426633716,-500.0,0.00024657,6]
[345694848,1734426633725,-510.34202473,0.00024657,6]
[345694849,1734426633735,-500.0,0.00024657,6]
[345694850,1734426633744,-500.0,0.00024657,6]
[345694851,1734426633759,-500.0,0.00024657,6]
[345694852,1734426633769,-500.0,0.00024657,6]
[345694853,1734426633779,-500.0,0.00024657,6]
[345694854,1734426633789,-1255.28,0.00024657,6]
[345694855,1734426633799,-500.0,0.00024657,6]
[345694856,1734426633809,-500.0,0.00024657,6]
[345694857,1734426633818,-500.0,0.00024657,6]
[345694858,1734426633828,-500.0,0.00024657,6]
[345694859,1734426633837,-500.0,0.00024657,6]
[345694860,1734426633847,-666.04,0.00024657,6]
[345694861,1734426633856,-500.0,0.00024657,6]
[345694862,1734426633866,-500.0,0.00024657,6]
[345694863,1734426633876,-500.0,0.00024657,6]
[345694864,1734426633885,-500.0,0.00024657,6]
[345694865,1734426633895,-1000.0,0.00024657,6]
[345694866,1734426633904,-299.20160247,0.00024657,6]
[345694867,1734426633914,-1162.05,0.00024657,6]
[345694868,1734426633923,-201.44096551,0.00024657,6]
[345694869,1734426633933,-500.0,0.00024657,6]
[345694870,1734426633942,-789.99,0.00024657,6]
[345694871,1734426633951,-500.0,0.00024657,6]
[345694872,1734426633961,-500.0,0.00024657,6]
[345694873,1734426633970,-500.0,0.00024657,6]
[345694874,1734426633979,-838.31,0.00024657,6]
[345694875,1734426633988,-500.0,0.00024657,6]
[345694876,1734426634002,-500.0,0.00024657,6]
[345694877,1734426634011,-500.0,0.00024657,6]
[345694878,1734426634021,-500.0,0.00024657,6]
[345694879,1734426634031,-856.48,0.00024657,6]
[345694880,1734426634040,-244.17,0.00024657,6]
[345694881,1734426634050,-1658.38,0.00024657,6]
[345694882,1734426634059,-500.0,0.00024657,6]
[345694883,1734426634068,-500.0,0.00024657,6]
[345694884,1734426634078,-1867.7,0.00024657,6]
[345694885,1734426634087,-500.0,0.00024657,6]
[345694886,1734426634097,-500.0,0.00024657,6]
[345694887,1734426634106,-500.0,0.00024657,6]
[345694888,1734426634115,-500.0,0.00024657,6]
[345694889,1734426634125,-500.0,0.00024657,6]
[345694890,1734426634134,-500.0,0.00024657,6]
[345694891,1734426634143,-500.0,0.00024657,6]
[345694892,1734426634152,-500.0,0.00024657,6]
[345694893,1734426634162,-1821.85,0.00024657,2]
[345694894,1734426634171,-511.22641958,0.00024657,6]
[345694895,1734426634180,-1529.71,0.00024657,6]
[345694896,1734426634190,-835.55,0.00024657,6]
[345694897,1734426634199,-1852.27,0.00024657,6]
[345694898,1734426634208,-500.0,0.00024657,6]
[345694899,1734426634218,-1305.89,0.00024657,6]
[345694900,1734426634227,-1846.95,0.00024657,6]
[345694901,1734426634241,-500.0,0.00024657,6]
[345694902,1734426634254,-703.85,0.00024657,6]
[345694903,1734426634264,-500.0,0.00024657,6]
[345694904,1734426634275,-500.0,0.00024657,6]
[345694905,1734426634284,-500.0,0.00024657,6]
[345694906,1734426634293,-506.01343551,0.00024657,6]
[345694907,1734426634302,-500.0,0.00024657,6]
[345694908,1734426634312,-500.0,0.00024657,6]
[345694909,1734426634322,-500.0,0.00024657,6]
[345694910,1734426634332,-500.0,0.00024657,6]
[345694911,1734426634342,-510.99,0.00024657,6]
[345694912,1734426634351,-500.0,0.00024657,6]
[345694913,1734426634361,-1526.26,0.00024657,6]
[345694914,1734426634371,-538.11,0.00024657,6]
[345694915,1734426634381,-500.0,0.00024657,6]
[345694916,1734426634390,-500.0,0.00024657,6]
[345694917,1734426634399,-1177.46,0.00024657,6]
[345694918,1734426634409,-500.0,0.00024657,6]
[345694919,1734426634419,-500.0,0.00024657,6]
[345694920,1734426634428,-500.0,0.00024657,6]
[345694921,1734426634438,-899.54,0.00024657,6]
[345694922,1734426634447,-500.0,0.00024657,6]
[345694923,1734426634456,-703.51,0.00024657,2]
[345694924,1734426634465,-500.0,0.00024657,6]
[345694925,1734426634475,-790.81,0.00024657,6]
[345694926,1734426634484,-500.0,0.00024657,6]
[345694927,1734426634493,-502.35,0.00024657,6]
[345694928,1734426634506,-500.0,0.00024657,6]
[345694929,1734426634515,-1753.87,0.00024657,6]
[345694930,1734426634525,-500.0,0.00024657,6]
[345694931,1734426634534,-500.0,0.00024657,6]
[345694932,1734426634544,-500.0,0.00024657,6]
[345694933,1734426634554,-500.0,0.00024657,6]
[345694934,1734426634564,-500.0,0.00024657,6]
[345694935,1734426634573,-500.0,0.00024657,6]
[345694936,1734426634583,-500.0,0.00024657,6]
[345694937,1734426634593,-2060.34,0.00024657,6]
[345694938,1734426634603,-500.0,0.00024657,6]
[345694939,1734426634612,-500.0,0.00024657,6]
[345694940,1734426634622,-500.0,0.00024657,6]
[345694941,1734426634631,-2075.79,0.00024657,6]
[345694942,1734426634640,-500.0,0.00024657,6]
[345694943,1734426634650,-1126.73,0.00024657,6]
[345694944,1734426634660,-597.17,0.00024657,6]
[345694945,1734426634669,-500.0,0.00024657,6]
[345694946,1734426634679,-1000.0,0.00024657,2]
[345694947,1734426634688,-1432.56,0.00024657,6]
[345694948,1734426634697,-1896.07,0.00024657,6]
[345694949,1734426634707,-1426.8,0.00024657,6]
[345694950,1734426634716,-1580.55,0.00024657,6]
[345694951,1734426634726,-500.0,0.00024657,6]
[345694952,1734426634735,-1147.09,0.00024657,6]
[345694953,1734426634746,-2173.19,0.00024657,6]
[345694954,1734426634759,-1379.04,0.00024657,6]
[345694955,1734426634769,-893.35,0.00024657,6]
[345694956,1734426634778,-512.38521138,0.00024657,6]
[345694957,1734426634788,-500.0,0.00024657,6]
[345694958,1734426634797,-223.66380604,0.00024657,6]
[345694959,1734426634806,-500.0,0.00024657,6]
[345694960,1734426634817,-1152.23,0.00024657,6]
[345694961,1734426634827,-953.55,0.00024657,6]
[345694962,1734426634837,-5415.24,0.00024657,6]
[345694963,1734426634846,-500.0,0.00024657,6]
[345694964,1734426634855,-500.0,0.00024657,6]
[345694965,1734426634865,-1407.33,0.00024657,6]
[345694966,1734426634874,-741.17,0.00024657,6]
[345694967,1734426634883,-2256.7,0.00024657,6]
[345694968,1734426634893,-500.0,0.00024657,6]
[345694969,1734426634902,-500.0,0.00024657,6]
[345694970,1734426634911,-850.42,0.00024657,6]
[345694971,1734426634920,-636.67,0.00024657,6]
[345694972,1734426634930,-500.0,0.00024657,6]
[345694973,1734426634939,-500.0,0.00024657,6]
[345694974,1734426634948,-609.69,0.00024657,6]
[345694975,1734426634958,-1025.0,0.00024657,6]
[345694976,1734426634967,-2058.25,0.00024657,6]
[345694977,1734426634976,-732.17,0.00024657,6]
[345694978,1734426634986,-500.0,0.00024657,6]
[345694979,1734426634999,-542.98,0.00024657,6]
[345694980,1734426635009,-500.0,0.00024657,6]
[345694981,1734426635018,-1514.28,0.00024657,6]
[345694982,1734426635028,-500.0,0.00024657,6]
[345694983,1734426635037,-2793.89,0.00024657,6]
[345694984,1734426635047,-34745.14,0.00024657,6]
[345694985,1734426635056,-529.88,0.00024657,6]
[345694986,1734426635065,-500.0,0.00024657,6]
[345694987,1734426635075,-500.0,0.00024657,6]
[345694988,1734426635084,-500.0,0.00024657,6]
[345694989,1734426635093,-614.62,0.00024657,6]
[345694990,1734426635103,-500.0,0.00024657,6]
[345694991,1734426635112,-500.0,0.00024657,6]
[345694992,1734426635121,-1788.31,0.00024657,6]
[345694993,1734426635131,-500.0,0.00024657,6]
[345694994,1734426635141,-500.0,0.00024657,6]
[345694995,1734426635150,-651.37,0.00024657,6]
[345694996,1734426635159,-500.0,0.00024657,6]
[345694997,1734426635169,-500.0,0.00024657,6]
[345694998,1734426635178,-500.0,0.00024657,6]
[345694999,1734426635187,-2120.77,0.00024657,6]
[345695000,1734426635196,-500.0,0.00024657,6]
[345695001,1734426635206,-1300.08,0.00024657,6]
[345695002,1734426635215,-2520.34,0.00024657,6]
[345695003,1734426635225,-500.0,0.00024657,6]
[345695004,1734426635239,-955.17,0.00024657,6]
[345695005,1734426635250,-13920.98,0.00024657,6]
[345695006,1734426635260,-500.0,0.00024657,6]
[345695007,1734426635270,-500.0,0.00024657,6]
[345695008,1734426635279,-6976.34,0.00024657,6]
[345695009,1734426635289,-1830.31,0.00024657,6]
[345695010,1734426635298,-815.82,0.00024657,6]
[345695011,1734426635309,-500.0,0.00024657,6]
[345695012,1734426635320,-500.0,0.00024657,6]
[345695013,1734426635330,-500.0,0.00024657,6]
[345695014,1734426635339,-500.0,0.00024657,6]
[345695015,1734426635348,-1948.13,0.00024657,6]
[345695016,1734426635358,-500.0,0.00024657,6]
[345695017,1734426635367,-2229.6,0.00024657,6]
[345695018,1734426635377,-500.0,0.00024657,6]
[345695019,1734426635386,-500.0,0.00024657,6]
[345695020,1734426635395,-8357.26,0.00024657,6]
[345695021,1734426635405,-500.0,0.00024657,6]
[345695022,1734426635414,-213.49068419,0.00024657,6]
[345695023,1734426635423,-755.57,0.00024657,6]
[345695024,1734426635432,-241.26475965,0.00024657,6]
[345695025,1734426635441,-500.0,0.00024657,6]
[345695026,1734426635450,-1573.96,0.00024657,6]
[345695027,1734426635460,-500.0,0.00024657,6]
[345695028,1734426635469,-500.0,0.00024657,6]
[345695029,1734426635478,-556.06,0.00024657,6]
[345695030,1734426635488,-2695.7,0.00024657,6]
[345695031,1734426635498,-2695.7,0.00024657,6]
[345695032,1734426635507,-2695.7,0.00024657,6]
[345695033,1734426635517,-2695.7,0.00024657,6]
[345695034,1734426635526,-2695.7,0.00024657,6]
[345695035,1734426635536,-2695.7,0.00024657,6]
[345695036,1734426635546,-2695.7,0.00024657,6]
[345695037,1734426635555,-2695.7,0.00024657,6]
[345695038,1734426635565,-2695.7,0.00024657,6]
[345695039,1734426635574,-2695.7,0.00024657,6]
[345695040,1734426635584,-2695.7,0.00024657,6]
[345695041,1734426635593,-2695.7,0.00024657,6]
[345695042,1734426635602,-2695.7,0.00024657,6]
[345695043,1734426635612,-2695.7,0.00024657,6]
[345695044,1734426635621,-2695.7,0.00024657,6]
[345695045,1734426635631,-2695.7,0.00024657,6]
[345695046,1734426635640,-2695.7,0.00024657,6]
[345695047,1734426635650,-2695.7,0.00024657,6]
[345695048,1734426635659,-2695.7,0.00024657,6]
[345695049,1734426635668,-1285.01,0.00024657,6]
[345695050,1734426635678,-2695.7,0.00024657,6]
[345695051,1734426635687,-2695.7,0.00024657,6]
[345695052,1734426635697,-500.0,0.00024657,6]
[345695053,1734426635706,-2695.7,0.00024657,6]
[345695054,1734426635716,-2695.7,0.00024657,6]
[345695055,1734426635725,-2695.82526494,0.00024657,6]
[345695056,1734426635735,-500.0,0.00024657,6]
[345695057,1734426635744,-11928.35,0.00024657,5]
[345695058,1734426635762,-1233.52,0.00024657,6]
[345695059,1734426635772,-696.73,0.00024657,6]
[345695060,1734426635781,-500.0,0.00024657,6]
[345695061,1734426635790,-500.0,0.00024657,6]
[345695062,1734426635799,-173.83,0.00024657,6]
[345695063,1734426635809,-500.0,0.00024657,6]
[345695064,1734426635819,-712.45,0.00024657,6]
[345695065,1734426635828,-602.88603378,0.00024657,6]
[345695066,1734426635838,-9212.12,0.00024657,6]
[345695067,1734426635848,-500.0,0.00024657,6]
[345695068,1734426635857,-500.0,0.00024657,6]
[345695069,1734426635866,-890.33,0.00024657,6]
[345695070,1734426635875,-225.74653219,0.00024657,6]
[345695071,1734426635885,-928.17,0.00024657,6]
[345695072,1734426635895,-557.17,0.00024657,6]
[345695073,1734426635905,-4871.69,0.00024657,6]
[345695074,1734426635914,-500.0,0.00024657,6]
[345695075,1734426635923,-821.72,0.00024657,6]
[345695076,1734426635932,-500.0,0.00024658,2]
[345695077,1734426635941,-500.0,0.00024658,2]
[345695078,1734426635951,-415.63173265,0.00024658,2]
[345695079,1734426635960,-500.0,0.00024673,2]
[345695080,1734426635970,-151.0,0.000247,9]
[345695081,1734426635979,-151.0,0.000247,6]
[345695082,1734426635989,-151.0,0.000247,7]
[345695083,1734426635998,-199.12036975,0.00024786,2]
[345695084,1734426636007,-151.0,0.000248,6]
[345695085,1734426636016,-151.0,0.000248,7]
[345695086,1734426636026,-461.53854762,0.000249,2]
[345695087,1734426636035,-285.45388865,0.000249,6]
[345695088,1734426636045,-151.0,0.000249,5]
[345695089,1734426636054,-500.0,0.00024931,6]
[345695090,1734426636064,-500.0,0.00024931,6]
[345695091,1734426636073,-581.91,0.00024931,6]
[345695092,1734426636083,-3000.0,0.00024931,30]
[345695093,1734426636093,-500.0,0.00024931,6]
[345695094,1734426636102,-500.0,0.00024931,6]
[345695095,1734426636111,-500.0,0.00024931,6]
[345695096,1734426636121,-599.8625904,0.00024931,6]
[345695097,1734426636130,-518.53773503,0.00024931,6]
[345695098,1734426636139,-500.0,0.00024931,6]
[345695099,1734426636148,-500.0,0.00024931,6]
[345695100,1734426636158,-500.0,0.00024931,6]
[345695101,1734426636167,-500.0,0.00024931,6]
[345695102,1734426636176,-500.0,0.00024931,6]
[345695103,1734426636185,-454.61694518,0.00024931,6]
[345695104,1734426636194,-500.0,0.00024931,6]
[345695105,1734426636203,-955.71,0.00024931,6]
[345695106,1734426636213,-736.04,0.00024931,6]
[345695107,1734426636222,-500.0,0.00024931,6]
[345695108,1734426636233,-500.0,0.00024931,6]
[345695109,1734426636243,-1902.19,0.00024931,6]
[345695110,1734426636256,-913.53,0.00024931,6]
[345695111,1734426636265,-500.0,0.00024931,6]
[345695112,1734426636276,-500.0,0.00024931,6]
[345695113,1734426636285,-500.0,0.00024931,6]
[345695114,1734426636295,-500.0,0.00024931,6]
[345695115,1734426636303,-500.0,0.00024931,6]
[345695116,1734426636315,-500.0,0.00024931,6]
[345695117,1734426636325,-500.0,0.00024931,6]
[345695118,1734426636334,-500.0,0.00024931,6]
[345695119,1734426636344,-500.0,0.00024931,6]
[345695120,1734426636353,-500.0,0.00024931,6]
[345695121,1734426636497,-1255.28,0.00024931,6]
[345695122,1734426636508,-500.0,0.00024931,6]
[345695123,1734426636518,-500.0,0.00024931,6]
[345695124,1734426636528,-500.0,0.00024931,6]
[345695125,1734426636538,-500.0,0.00024931,6]
[345695126,1734426636548,-500.0,0.00024931,6]
[345695127,1734426636557,-666.04,0.00024931,6]
[345695128,1734426636567,-500.0,0.00024931,6]
[345695129,1734426636576,-500.0,0.00024931,6]
[345695130,1734426636586,-500.0,0.00024931,6]
[345695131,1734426636595,-500.0,0.00024931,6]
[345695132,1734426636604,-1004.93115017,0.00024931,6]
[345695133,1734426636614,-1162.05,0.00024931,6]
[345695134,1734426636623,-500.0,0.00024931,6]
[345695135,1734426636633,-789.99,0.00024931,6]
[345695136,1734426636643,-500.0,0.00024931,6]
[345695137,1734426636652,-500.0,0.00024931,6]
[345695138,1734426636662,-838.31,0.00024931,6]
[345695139,1734426636671,-500.0,0.00024931,6]
[345695140,1734426636681,-371.00611123,0.00024931,6]
[345695141,1734426636690,-416.66,0.00024931,6]
[345695142,1734426636700,-500.0,0.00024931,6]
[345695143,1734426636709,-856.48,0.00024931,6]
[345695144,1734426636719,-244.17,0.00024931,6]
[345695145,1734426636728,-1658.38,0.00024931,6]
[345695146,1734426636738,-500.0,0.00024931,6]
[345695147,1734426636750,-500.0,0.00024931,6]